bitfinex-derivatives/quotes_ETHF0:USTF0_20250810
["timestamp","ask_amount","ask_price","bid_price","bid_amount"]
[1754831652202,1.80635,4202.6,4202.5,1.5565]
[1754831652507,1.80635,4202.6,4201.9,0.2559]
[1754831652508,0.2624,4202.6,4201.9,0.2559]
[1754831652709,0.3631,4202.2,4202.1,1.5565]
[1754831653006,0.3631,4202.2,4202.1,13.2305]
[1754831653201,0.8129,4202.2,4202.1,23.2255]
[1754831657909,0.8129,4202.2,4202.1,1.5565]
[1754831658108,0.8129,4202.2,4202.1,23.2215]
[1754831659008,0.6306,4202.2,4202.1,0.8858]
[1754831659208,1.0681,4202.2,4202.1,14.9565]
[1754831661204,0.6356,4202.2,4202.1,21.662]
[1754831661414,1.3305,4202.2,4202.1,23.032]
[1754831661607,1.3305,4202.2,4202.1,23.2185]
[1754831662704,1.544,4202.2,4202.1,23.2185]
[1754831664511,1.0681,4202.2,4202.1,23.2185]
[1754831666510,1.0681,4202.2,4202.1,23.2125]
[1754831667116,1.3305,4202.2,4202.1,23.2125]
[1754831667915,1.0681,4202.2,4202.1,23.68841]
[1754831668512,0.3631,4202.6,4202.5,1.5565]
[1754831668713,0.3631,4202.6,4202.5,23.2105]
[1754831669012,1.10639,4203.1,4203.0,1.1605]
[1754831669220,1.80629,4203.1,4203.0,1.5565]
[1754831669519,1.54394,4202.7,4202.6,1.5565]
[1754831669814,1.54394,4202.7,4201.5,1.18993]
[1754831669815,1.0681,4202.4,4202.3,1.5565]
[1754831670012,1.3305,4202.4,4202.3,23.2145]
[1754831670210,1.0681,4202.4,4202.3,23.2145]
[1754831670613,1.09418,4202.3,4202.2,0.8858]
[1754831670816,1.54398,4202.3,4202.2,23.2185]
[1754831671018,1.80638,4202.3,4202.2,1.5565]
[1754831671318,1.80638,4202.3,4202.2,23.2175]
[1754831671613,1.54398,4202.3,4202.2,1.5565]
[1754831671817,1.80638,4202.3,4202.2,23.2165]
[1754831672413,1.3305,4202.3,4201.6,0.47596]
[1754831672716,1.0681,4201.8,4201.7,23.2165]
[1754831672912,1.0681,4201.8,4201.7,23.2155]
[1754831673220,0.5454,4201.8,4201.7,1.5565]
[1754831673515,1.3305,4201.8,4201.7,23.028]
[1754831673712,1.3305,4201.8,4201.7,23.2145]
[1754831673911,0.1823,4201.7,4201.1,35.13901]
[1754831674222,0.3631,4201.4,4201.3,1.5565]
[1754831675114,0.6306,4201.4,4201.3,1.5565]
[1754831675315,0.8129,4201.4,4201.3,1.5565]
[1754831675719,1.55236,4201.7,4201.6,1.5522]
[1754831675921,1.82716,4201.7,4201.6,23.2112]
[1754831676310,1.82716,4201.7,4201.6,0.7086]
[1754831676514,0.4566,4201.4,4200.3,3.8556]
[1754831676719,6.0,4201.7,4200.8,0.656]
[1754831676720,1.82724,4200.9,4200.8,0.656]
[1754831676910,1.82724,4200.9,4200.8,1.3792]
[1754831677113,1.82724,4200.9,4200.0,0.47614]
[1754831677114,0.47609,4200.6,4200.0,0.47614]
[1754831677312,1.0764,4200.6,4200.5,1.5522]
[1754831677517,1.0764,4200.6,4200.5,23.2142]
[1754831679529,1.0764,4200.6,4200.5,1.5522]
[1754831679826,1.0764,4200.6,4199.9,34.277]
[1754831679827,0.7314,4200.6,4199.9,34.277]
[1754831680035,0.8018,4200.0,4199.9,34.277]
[1754831680231,0.8018,4200.0,4199.9,55.938]
[1754831680420,0.6198,4200.0,4199.9,0.6243]
[1754831680625,0.6198,4200.1,4200.0,1.5522]
[1754831681025,1.0764,4200.1,4200.0,1.5522]
[1754831682722,1.0764,4200.1,4200.0,23.2172]
[1754831682922,0.47615,4200.0,4199.6,0.2573]
[1754831683128,0.8018,4199.8,4199.7,23.2132]
[1754831683727,0.1834,4200.1,4199.8,0.47617]
[1754831683934,1.55253,4200.2,4200.1,1.5522]
[1754831684234,1.82733,4200.2,4200.1,0.7086]
[1754831684427,1.82733,4200.2,4200.1,0.4316]
[1754831684633,1.82736,4199.9,4199.8,1.1022]
[1754831684932,1.82739,4199.6,4199.5,0.4513]
[1754831685128,0.93276,4199.9,4199.8,0.1743]
[1754831685321,1.27796,4199.9,4199.8,1.1535]
[1754831685625,1.82736,4199.9,4199.8,1.1073]
[1754831685833,1.82736,4199.9,4199.8,1.5522]
[1754831686227,1.82736,4199.9,4199.6,22.3023]
[1754831686228,0.6198,4199.7,4199.6,22.3023]
[1754831686425,0.6198,4199.8,4199.7,1.5522]
[1754831686628,0.8946,4199.8,4199.7,1.5522]
[1754831686827,0.8946,4199.8,4199.7,0.8816]
[1754831687027,1.3512,4199.8,4199.7,0.8816]
[1754831687423,1.3512,4199.8,4199.7,1.5522]
[1754831687830,0.7314,4199.6,4199.5,0.2573]
[1754831688131,1.3512,4199.6,4199.5,0.2573]
[1754831688337,1.55265,4199.1,4199.0,1.5522]
[1754831688535,1.55265,4199.1,4199.0,23.2592]
[1754831688732,1.55265,4199.1,4199.0,1.5522]
[1754831688940,1.55265,4199.1,4198.6,1.5522]
[1754831688941,1.27809,4198.7,4198.6,1.5522]
[1754831689237,0.5286,4198.7,4198.6,23.2582]
[1754831689437,0.8018,4198.7,4198.6,23.2582]
[1754831689626,0.1713,4198.7,4198.6,23.2582]
[1754831690340,0.1713,4198.7,4198.6,23.2572]
[1754831690538,0.6184,4198.7,4198.6,23.2572]
[1754831690839,0.8019,4198.7,4198.6,23.2572]
[1754831691034,1.0765,4198.7,4198.6,23.2562]
[1754831691232,1.0765,4198.7,4198.6,1.5522]
[1754831691428,0.1713,4198.4,4198.3,1.1535]
[1754831691733,1.0765,4198.8,4198.7,1.2803]
[1754831692035,1.0765,4198.8,4198.7,23.2562]
[1754831692935,1.09608,4198.8,4198.7,22.4356]
[1754831693133,1.09608,4198.8,4198.7,23.2792]
[1754831693533,1.55278,4198.8,4198.7,1.5522]
[1754831693740,1.55278,4198.8,4198.7,23.2802]
[1754831694239,1.09612,4198.5,4198.4,0.6243]
[1754831694432,1.82762,4198.5,4198.4,1.5522]
[1754831694639,1.3513,4198.5,4198.4,23.2882]
[1754831694835,1.0765,4198.5,4198.4,23.2882]
[1754831695037,1.3513,4198.5,4198.4,1.5522]
[1754831695337,0.47633,4198.4,4198.1,0.47635]
[1754831695541,1.0765,4198.4,4198.3,1.5522]
[1754831695841,0.3452,4198.4,4198.3,23.2852]
[1754831696137,0.1713,4198.4,4198.3,0.4449]
[1754831696338,0.6306,4198.7,4198.6,0.4513]
[1754831696543,0.8019,4198.7,4198.6,1.5522]
[1754831696839,0.6184,4198.7,4198.6,1.5522]
[1754831697040,0.3452,4198.7,4198.6,1.5522]
[1754831697343,0.1713,4198.7,4198.6,1.5522]
[1754831697637,0.47628,4198.8,4198.7,0.5292]
[1754831697842,0.47628,4198.8,4198.7,1.5522]
[1754831698139,1.82758,4198.8,4198.7,1.3792]
[1754831698342,1.82762,4198.5,4198.4,1.5522]
[1754831699343,1.3513,4198.5,4198.4,1.5522]
[1754831699543,1.27955,4199.1,4199.0,0.6243]
[1754831699739,1.82755,4199.1,4199.0,1.5522]
[1754831700743,1.82755,4199.1,4199.0,1.2803]
[1754831701045,1.82755,4199.1,4199.0,0.2573]
[1754831701539,1.82755,4199.1,4199.0,0.7086]
[1754831701743,1.0765,4199.1,4199.0,1.5522]
[1754831701945,0.8019,4199.1,4199.0,1.5522]
[1754831703448,1.38433658,4200.0,4198.8,0.4316]
[1754831703449,1.3513,4198.9,4198.8,0.4316]
[1754831703651,0.3452,4199.0,4198.9,1.5522]
[1754831703945,1.0765,4199.0,4198.9,1.5522]
[1754831705939,1.0883,4199.0,4198.9,0.4577]
[1754831706142,1.0883,4199.0,4198.9,1.5818]
[1754831706444,0.4615,4199.8,4199.1,0.534]
[1754831706640,1.56927,4199.8,4199.7,1.5818]
[1754831706947,0.58224254,4200.2,4199.7,1.5818]
[1754831707141,0.84685,4200.0,4199.9,0.6323]
[1754831707340,0.47621,4199.5,4199.4,1.3268]
[1754831707545,1.56931,4199.5,4199.4,1.3268]
[1754831707746,1.83591,4199.5,4199.4,1.3268]
[1754831708046,0.4762,4199.6,4199.4,1.5818]
[1754831708241,1.56921,4200.3,4200.2,0.6323]
[1754831708446,1.83581,4200.3,4200.2,1.5818]
[1754831709243,1.56921,4200.3,4200.2,1.5818]
[1754831710448,1.56923,4200.1,4200.0,0.1783]
[1754831710650,1.83583,4200.1,4200.0,0.255]
[1754831710947,1.83583,4200.1,4200.0,1.1282]
[1754831711147,1.83583,4200.1,4199.2,1.3028]
[1754831711148,1.56934,4199.3,4199.2,1.3028]
[1754831711449,1.83594,4199.3,4199.2,1.5818]
[1754831712653,0.47631,4198.6,4198.5,0.9113]
[1754831712842,0.4763,4198.7,4198.6,0.279]
[1754831713049,0.4763,4198.7,4198.6,0.9113]
[1754831713050,1.5694,4198.7,4198.6,0.9113]
[1754831713250,0.7114,4198.4,4198.3,0.4577]
[1754831713445,0.8982,4198.4,4198.3,1.3028]
[1754831713639,0.8982,4198.4,4198.0,0.6945]
[1754831713845,1.0931,4197.9,4197.8,1.1245]
[1754831714047,1.3597,4197.9,4197.8,1.5818]
[1754831714347,1.83609,4197.8,4197.7,1.5818]
[1754831714546,1.83609,4197.8,4197.7,1.3028]
[1754831714742,1.83609,4197.8,4197.4,1.3034315]
[1754831714947,1.3597,4197.5,4197.4,1.0244315]
[1754831715146,1.3597,4197.5,4197.4,1.2794315]
[1754831715347,1.3597,4197.5,4197.4,1.7371315]
[1754831715750,1.3597,4197.5,4197.4,2.3272315]
[1754831715941,0.47639,4197.9,4197.4,2.6062315]
[1754831716148,1.0931,4197.8,4197.7,1.5818]
[1754831717248,1.3597,4197.8,4197.7,1.5818]
[1754831717551,1.3597,4197.5,4197.4,1.4577315]
[1754831717751,1.3597,4197.5,4197.4,1.7371315]
[1754831717951,1.3597,4197.5,4197.4,1.9117315]
[1754831718147,1.3597,4197.5,4197.4,2.6062315]
[1754831719256,1.3597,4197.5,4197.4,1.0244315]
[1754831719452,1.3597,4197.5,4197.4,1.7371315]
[1754831720150,1.3597,4197.5,4197.4,1.0244315]
[1754831720747,0.9158,4197.5,4197.4,1.9117315]
[1754831720950,0.2785,4198.5,4197.5,0.9495]
[1754831721255,0.47639,4197.9,4197.8,1.5818]
[1754831721453,1.65235,4198.3,4198.0,0.4577]
[1754831721454,0.47636,4198.1,4198.0,0.4577]
[1754831721651,0.2785,4198.7,4198.1,0.9495]
[1754831721849,1.83599,4198.7,4198.6,0.7127]
[1754831722947,0.58442831,4199.3,4198.4,0.255]
[1754831722948,0.47632,4198.5,4198.4,0.255]
[1754831723151,1.83605,4198.2,4198.1,0.8873]
[1754831723554,1.83605,4198.2,4197.4,1.0244315]
[1754831723555,1.56952,4197.6,4197.5,1.5818]
[1754831723757,1.3597,4197.5,4197.4,1.2794315]
[1754831724454,0.58442831,4198.4,4197.4,1.6567315]
[1754831724455,0.4615,4198.1,4197.4,1.6567315]
[1754831724658,0.47634,4198.3,4198.0,1.5818]
[1754831724957,0.4763,4198.7,4198.3,0.6323]
[1754831725152,0.8322,4198.8,4198.7,0.1783]
[1754831725355,0.1868,4198.8,4198.7,1.5818]
[1754831725554,0.93775,4199.1,4198.7,0.6323]
[1754831725759,0.93775,4199.1,4197.8,1.19097]
[1754831725760,0.47626,4199.0,4198.8,1.5818]
[1754831726062,0.1868,4199.0,4198.9,0.3529]
[1754831726353,0.1868,4199.0,4198.9,0.6323]
[1754831726857,0.1868,4199.0,4198.9,1.5818]
[1754831727060,1.30837,4199.8,4199.7,0.4577]
[1754831727254,1.0931,4199.8,4199.7,1.5818]
[1754831727452,0.3707,4199.8,4199.7,1.5818]
[1754831727663,0.8146,4200.1,4200.0,0.6323]
[1754831727856,0.18914598,4200.9,4198.2,1.19085]
[1754831727857,0.47617,4199.8,4199.7,1.5818]
[1754831728162,1.3744,4199.5,4199.4,0.4333]
[1754831728457,1.6529,4199.5,4199.4,0.7127]
[1754831728653,1.8366,4199.5,4199.4,0.7127]
[1754831728851,1.1078,4199.5,4199.2,0.6705]
[1754831729047,1.3604,4199.3,4199.2,0.4333]
[1754831729255,0.6316,4199.1,4199.0,0.7127]
[1754831729452,1.3604,4199.1,4199.0,0.7127]
[1754831729657,1.3604,4199.1,4199.0,1.5818]
[1754831729959,1.57007,4198.9,4198.8,1.5818]
[1754831730148,0.47632,4198.5,4198.1,0.279]
[1754831730456,0.4763,4198.7,4198.6,1.5818]
[1754831730854,0.847,4198.7,4198.6,1.5818]
[1754831731054,1.3092,4198.7,4198.6,1.5818]
[1754831731260,1.5701,4198.7,4198.6,1.5818]
[1754831731459,1.38623,4198.4,4198.3,0.255]
[1754831731655,1.83673,4198.4,4198.3,0.255]
[1754831732158,1.83673,4198.4,4198.3,0.7127]
[1754831732555,1.83673,4198.4,4198.3,1.1282]
[1754831734053,1.83673,4198.4,4198.3,1.5818]
[1754831734259,1.10796,4198.1,4198.0,0.9113]
[1754831734461,1.57016,4198.1,4198.0,0.7127]
[1754831734662,1.57016,4198.1,4198.0,1.5818]
[1754831735352,0.47636,4198.1,4198.0,1.5818]
[1754831735751,1.09977,4198.9,4198.8,0.644]
[1754831736151,1.54777,4198.9,4198.8,1.5943]
[1754831736355,1.36447,4198.9,4198.8,1.5943]
[1754831737057,0.82517,4198.9,4198.8,1.5943]
[1754831738254,0.2686,4199.4,4199.1,0.644]
[1754831738255,0.47621,4199.4,4199.1,0.644]
[1754831738457,0.47621,4199.4,4199.3,1.5943]
[1754831738651,0.47621,4199.5,4199.4,1.4066]
[1754831738862,0.47621,4199.5,4198.2,1.19087]
[1754831738863,1.08974,4200.0,4199.9,0.644]
[1754831739061,0.6136,4200.0,4199.9,1.5943]
[1754831739561,1.0715,4200.0,4199.9,1.5943]
[1754831739762,1.3401,4200.0,4199.9,1.5943]
[1754831739961,1.54771,4199.5,4199.4,1.5943]
[1754831740261,1.81631,4199.5,4199.4,0.744]
[1754831740456,1.19026,4200.4,4198.6,0.6742]
[1754831740457,0.1833,4199.2,4198.6,0.6742]
[1754831740659,0.4763,4198.6,4198.3,0.6742]
[1754831740859,1.3401,4198.4,4198.3,0.878]
[1754831741158,1.3401,4198.4,4198.3,0.2761]
[1754831742453,1.1908,4198.5,4197.5,0.6903]
[1754831742658,0.7969,4197.6,4197.5,1.5943]
[1754831743056,1.0715,4197.6,4197.5,1.5943]
[1754831743263,0.3489,4197.6,4197.5,1.5943]
[1754831743659,0.4764,4197.8,4197.7,1.5943]
[1754831744462,1.09,4197.8,4197.7,1.5943]
[1754831744764,1.2733,4197.8,4197.7,1.5943]
[1754831745466,1.26785117,4197.8,4197.7,1.5943]
[1754831746163,1.54245117,4197.8,4197.7,1.5943]
[1754831746559,1.09993,4197.6,4197.5,0.744]
[1754831746958,1.09993,4197.6,4197.5,1.3343]
[1754831747268,1.54793,4197.6,4197.5,1.5943]
[1754831747861,0.7969,4198.0,4197.9,1.5943]
[1754831748262,1.27327,4198.0,4197.9,1.5943]
[1754831748462,1.54787,4198.0,4197.9,1.5943]
[1754831749162,1.28317,4198.0,4197.9,1.5943]
[1754831749464,1.54787,4198.0,4197.9,1.5943]
[1754831749859,1.81647,4198.0,4197.9,1.5943]
[1754831750060,1.81647,4198.0,4197.9,0.9201]
[1754831750263,1.81647,4198.0,4197.9,0.744]
[1754831750656,0.6235,4197.5,4197.4,2.0826315]
[1754831750861,0.6235,4197.5,4197.4,2.6187315]
[1754831751063,1.0715,4197.5,4197.4,2.6187315]
[1754831751658,1.3401,4197.5,4197.4,1.9445315]
[1754831751868,1.3401,4197.5,4197.4,1.0244315]
[1754831754473,1.3401,4197.5,4197.4,1.4882315]
[1754831754975,0.3489,4197.5,4197.4,2.6187315]
[1754831755468,0.47642,4197.6,4197.4,2.6187315]
[1754831755662,0.47642,4197.6,4197.5,1.5943]
[1754831756072,0.82532,4197.6,4197.5,1.5943]
[1754831756272,0.47642,4197.6,4197.5,1.5943]
[1754831756662,0.82532,4197.6,4197.5,1.5943]
[1754831756862,0.6175,4197.5,4197.4,1.3005315]
[1754831757067,1.3401,4197.5,4197.4,1.3005315]
[1754831757872,1.3401,4197.5,4197.4,1.0244315]
[1754831758674,0.179,4196.5,4196.4,0.4638]
[1754831758878,1.09014,4196.5,4196.4,1.4182]
[1754831759174,1.35874,4196.5,4196.4,1.1582]
[1754831759376,1.35874,4196.5,4196.4,0.744]
[1754831759576,1.09018,4196.2,4196.1,1.5943]
[1754831761178,0.2647,4196.2,4195.8,0.2761]
[1754831761373,0.2686,4196.7,4195.9,0.6903]
[1754831761576,1.09408,4196.2,4196.1,1.5943]
[1754831761779,1.09023,4195.8,4195.7,1.5943]
[1754831762883,1.09023,4195.8,4194.4,34.318]
[1754831762884,0.8822,4195.6,4195.5,0.2761]
[1754831763181,0.8822,4195.6,4195.5,0.744]
[1754831763377,0.8822,4195.6,4194.5,0.9503]
[1754831763378,0.2686,4195.6,4194.5,0.9503]
[1754831763579,0.3489,4195.4,4195.3,0.644]
[1754831763880,0.82562,4194.9,4194.8,1.3182]
[1754831764082,1.09032,4194.9,4194.8,1.3182]
[1754831764386,0.2647,4195.3,4193.7,0.26]
[1754831764570,0.5333,4195.3,4194.2,0.2761]
[1754831764773,0.5333,4195.3,4194.1,0.9503]
[1754831765174,0.5333,4195.3,4194.5,0.644]
[1754831765175,0.47676,4194.6,4194.5,0.644]
[1754831765378,0.47674,4194.8,4194.5,0.644]
[1754831765577,0.82514,4194.8,4194.7,1.5883]
[1754831765774,0.47673,4194.9,4194.8,0.9606]
[1754831765978,0.82509,4195.3,4195.2,0.6277]
[1754831766179,1.09959,4195.3,4195.2,1.5883]
[1754831766578,1.09962,4194.9,4194.8,1.5883]
[1754831766781,1.35402,4194.9,4194.8,0.7116]
[1754831767087,1.35406,4194.6,4194.5,0.8983]
[1754831767383,1.35406,4194.6,4194.5,1.3111]
[1754831768283,1.35406,4194.6,4194.5,0.8983]
[1754831768879,1.09969,4194.3,4194.2,1.5883]
[1754831769079,1.09969,4194.3,4194.2,1.3111]
[1754831769280,0.47679,4194.3,4194.2,1.5883]
[1754831769587,0.47676,4194.6,4194.5,1.5883]
[1754831771895,0.2745,4195.1,4193.4,1.02540867]
[1754831771896,0.47675,4194.7,4194.6,1.5883]
[1754831773886,0.2745,4194.7,4193.9,0.6277]
[1754831774190,1.09965,4194.7,4194.6,1.5883]
[1754831775283,1.35405,4194.7,4194.6,1.3111]
[1754831775590,1.0997,4194.2,4194.1,1.3177]
[1754831776090,1.0997,4194.2,4194.1,1.5883]
[1754831777390,0.47686,4193.7,4193.6,1.3177]
[1754831777993,0.82526,4193.7,4193.6,1.5883]
[1754831778185,1.09976,4193.7,4193.6,1.5883]
[1754831779293,0.82526,4193.7,4193.6,1.5883]
[1754831779593,0.4521,4194.3,4194.2,1.1755]
[1754831779895,1.09969,4194.3,4194.2,1.5883]
[1754831780194,1.09974,4193.9,4193.8,1.5883]
[1754831780580,1.09974,4193.9,4193.8,1.1755]
[1754831780791,1.35414,4193.9,4193.8,1.3111]
[1754831781490,0.82528,4193.5,4193.4,1.80720867]
[1754831781694,0.82528,4193.5,4193.4,2.06590867]
[1754831781695,1.35418,4193.5,4193.4,2.06590867]
[1754831781899,1.35418,4193.5,4192.0,21.983]
[1754831781900,1.19224,4193.4,4191.8,0.4128]
[1754831782090,0.82542,4192.4,4192.3,0.6277]
[1754831782291,1.09992,4192.4,4192.3,1.5883]
[1754831782689,0.5289,4193.5,4192.3,1.5883]
[1754831782886,0.3484,4192.6,4192.5,1.1755]
[1754831783191,0.1776,4192.6,4192.5,1.5883]
[1754831783396,0.2745,4192.8,4192.5,0.6277]
[1754831783697,1.09986,4192.8,4192.7,1.5883]
[1754831783898,0.6229,4192.8,4192.7,1.5883]
[1754831784189,0.6229,4192.8,4190.1,0.2772]
[1754831784190,0.47704,4192.2,4190.1,0.2772]
[1754831784390,0.6229,4192.2,4192.1,1.5883]
[1754831784997,0.1776,4192.2,4192.1,1.5883]
[1754831785391,0.6229,4192.2,4192.1,1.5883]
[1754831786907,0.6229,4192.2,4192.1,1.3111]
[1754831787291,0.8773,4192.2,4192.1,1.3111]
[1754831787597,0.8773,4192.2,4192.1,0.7116]
[1754831787798,0.8773,4192.2,4192.1,1.5883]
[1754831787999,0.6229,4192.2,4192.1,1.5883]
[1754831788999,0.47703,4192.3,4192.1,0.6277]
[1754831789296,0.47703,4192.3,4192.2,1.5883]
[1754831790997,0.47699,4192.6,4192.4,1.5883]
[1754831791200,0.6229,4193.5,4193.4,0.441]
[1754831791399,1.09978,4193.5,4193.4,1.406]
[1754831791606,0.82539,4192.6,4192.5,1.3177]
[1754831791799,1.35429,4192.6,4192.5,1.3177]
[1754831791998,1.35429,4192.6,4192.5,1.5883]
[1754831792206,1.35429,4192.6,4192.5,1.3111]
[1754831792707,1.35429,4192.6,4192.5,1.5883]
[1754831793602,0.82542,4192.3,4192.2,1.5883]
[1754831794004,1.09992,4192.3,4192.2,1.5883]
[1754831794299,0.47702,4192.3,4192.2,1.5883]
[1754831794701,1.09981,4193.3,4193.2,1.5883]
[1754831794891,1.19218,4193.7,4191.2,1.19285]
[1754831794892,0.47701,4192.4,4192.3,0.6277]
[1754831795097,0.82541,4192.4,4192.3,1.5883]
[1754831795804,1.09701,4192.4,4192.3,1.5883]
[1754831795998,0.47707,4191.9,4191.4,0.73721]
[1754831796204,0.47711,4191.5,4191.4,0.6302]
[1754831796407,0.47708,4191.8,4191.7,0.6302]
[1754831796703,1.3792,4192.5,4192.4,1.2993]
[1754831797301,1.3792,4192.5,4192.2,0.5328]
[1754831797500,1.10696,4191.9,4191.8,1.3857]
[1754831797701,0.83536,4191.9,4191.8,1.5594]
[1754831798005,0.47706,4191.9,4191.8,1.5594]
[1754831798207,0.47703,4192.2,4192.1,0.6302]
[1754831798401,0.47702,4192.3,4192.2,1.5594]
[1754831798803,0.83532,4192.3,4192.2,1.5594]
[1754831799002,1.10692,4192.3,4192.2,1.5594]
[1754831799904,0.47701,4192.4,4192.2,1.5594]
[1754831800102,0.2716,4192.7,4192.3,1.5594]
[1754831800412,0.6299,4192.7,4192.6,1.5594]
[1754831800703,0.47695,4192.9,4192.8,0.4464]
[1754831800899,0.83525,4192.9,4192.8,1.5594]
[1754831801095,1.10685,4192.9,4192.8,1.5594]
[1754831801307,0.477,4192.5,4191.8,0.47707]
[1754831801605,1.10693,4192.3,4192.2,1.5594]
[1754831802206,0.6299,4192.3,4192.2,1.5594]
[1754831802902,0.3583,4192.3,4192.2,1.5594]
[1754831803302,0.1831,4192.3,4192.2,1.5594]
[1754831803908,0.47701,4192.4,4192.2,1.5594]
[1754831804103,1.10684,4193.0,4192.9,1.5594]
[1754831804297,0.83524,4193.0,4192.9,1.5594]
[1754831804906,1.10684,4193.0,4192.9,1.5594]
[1754831805907,0.47693,4193.1,4192.9,1.5594]
[1754831806099,0.58191848,4193.9,4191.6,1.19275]
[1754831806100,0.47691,4193.3,4193.1,0.9292]
[1754831806299,0.58191848,4194.1,4193.7,0.8887]
[1754831806502,0.3583,4193.9,4193.8,1.5594]
[1754831806903,0.4768,4194.2,4194.1,0.6302]
[1754831807108,0.8351,4194.2,4194.1,1.5594]
[1754831807307,1.1067,4194.2,4194.1,1.5594]
[1754831807510,1.379,4194.2,4194.1,1.5594]
[1754831807698,1.379,4194.2,4194.1,1.2993]
[1754831808413,0.3583,4194.2,4194.1,1.5594]
[1754831808708,0.4768,4194.3,4194.2,1.5594]
[1754831808905,0.2716,4194.6,4194.3,0.9292]
[1754831809104,0.6299,4194.6,4194.5,1.5594]
[1754831810007,0.3583,4194.6,4194.5,1.5594]
[1754831810216,0.6299,4194.6,4194.5,1.5594]
[1754831810601,0.9022,4194.6,4194.5,1.5594]
[1754831811910,0.47674,4194.8,4194.5,0.6302]
[1754831812113,0.5439,4194.7,4194.6,0.9418]
[1754831812313,0.9022,4194.7,4194.6,0.9418]
[1754831812512,0.9022,4194.7,4194.6,1.1256]
[1754831812813,0.9022,4194.7,4194.6,1.2993]
[1754831813016,0.9022,4194.7,4194.6,1.5594]
[1754831813815,0.6299,4194.7,4194.6,1.5594]
[1754831814716,0.47674,4194.8,4194.6,1.5594]
[1754831815014,0.47673,4194.9,4194.8,1.5594]
[1754831815716,0.5439,4195.3,4194.8,1.5594]
[1754831815913,1.19159,4195.7,4195.1,0.2601]
[1754831816218,1.10723,4195.7,4195.6,0.8887]
[1754831816412,1.10723,4195.7,4195.6,0.715]
[1754831816605,1.37883,4195.7,4195.6,0.715]
[1754831818320,1.37883,4195.7,4195.6,1.1256]
[1754831818517,1.10653,4195.7,4195.6,1.2993]
[1754831818720,1.10653,4195.7,4195.6,1.5594]
[1754831819019,0.5439,4196.5,4195.7,0.4106]
[1754831819220,0.2716,4196.4,4195.5,0.9292]
[1754831819411,0.46224175,4196.4,4195.6,0.9292]
[1754831819613,1.1065,4196.1,4196.0,1.5594]
[1754831820113,0.6299,4196.1,4196.0,1.5594]
[1754831820422,0.3583,4196.1,4196.0,1.5594]
[1754831820612,0.6299,4196.1,4196.0,1.5594]
[1754831822224,1.10661,4195.1,4195.0,0.6302]
[1754831822418,0.5439,4194.9,4193.5,1.1922]
[1754831822725,0.4767,4195.1,4194.7,0.6302]
[1754831822919,1.1821,4194.8,4194.7,0.6302]
[1754831823123,1.593,4194.8,4194.7,0.6302]
[1754831824318,2.06979,4194.4,4194.3,1.3009]
[1754831824519,2.06979,4194.4,4194.3,1.5594]
[1754831828229,1.593,4194.4,4194.3,1.5594]
[1754831828431,0.9022,4194.4,4194.3,1.5594]
[1754831828619,0.6299,4194.4,4194.3,1.5594]
[1754831829021,0.8971,4194.4,4194.3,1.5594]
[1754831829626,0.47676,4194.6,4194.5,0.1772]
[1754831829829,0.47676,4194.6,4194.5,1.5944]
[1754831830026,0.84666,4194.6,4194.5,1.5944]
[1754831830321,1.39036,4194.6,4194.5,1.5944]
[1754831830526,2.06256,4194.6,4194.5,1.5944]
[1754831830927,0.84671,4194.2,4194.1,0.6286]
[1754831831134,1.39041,4194.2,4194.1,1.5944]
[1754831831425,1.12321,4194.2,4194.1,1.5944]
[1754831831622,0.47679,4194.4,4194.1,0.6286]
[1754831831826,1.39038,4194.5,4194.4,0.6286]
[1754831832126,1.39038,4194.5,4194.4,1.5944]
[1754831832527,2.06258,4194.5,4194.4,1.5944]
[1754831832723,0.5437,4194.9,4194.4,1.5944]
[1754831833027,1.39033,4194.8,4194.7,1.5944]
[1754831833329,2.06253,4194.8,4194.7,1.5944]
[1754831833727,2.06253,4194.8,4194.7,1.3163]
[1754831834330,2.06253,4194.8,4194.7,1.5944]
[1754831838136,2.06253,4194.8,4194.7,1.3163]
[1754831838634,2.06253,4194.8,4194.7,1.0419]
[1754831840033,2.06253,4194.8,4194.7,1.5944]
[1754831841633,0.58418239,4195.5,4194.7,1.5944]
[1754831841935,0.955,4195.8,4194.8,0.9658]
[1754831842235,0.84654,4195.6,4195.5,1.32]
[1754831842535,1.12304,4195.6,4195.5,1.5944]
[1754831842837,1.65136,4196.3,4196.2,0.4514]
[1754831843040,2.06266,4196.3,4196.2,1.0419]
[1754831843334,2.06266,4196.3,4196.2,1.3163]
[1754831843529,2.06266,4196.3,4196.2,1.5944]
[1754831847639,0.47656,4196.4,4196.3,1.5944]
[1754831847942,0.47655,4196.5,4196.4,1.5944]
[1754831848344,2.06265,4196.5,4196.4,1.5944]
[1754831849234,0.955,4196.5,4195.7,0.2744]
[1754831849438,0.47669,4195.2,4195.1,1.3163]
[1754831849630,0.47669,4195.2,4194.1,0.9658]
[1754831849631,0.955,4195.2,4194.1,0.9658]
[1754831849836,1.38435,4194.7,4194.6,0.4514]
[1754831850039,2.06285,4194.7,4194.6,0.8647]
[1754831850335,2.06285,4194.7,4194.6,1.5944]
[1754831851542,0.6464,4194.7,4194.6,1.5944]
[1754831852036,0.47674,4194.8,4194.6,1.5944]